fUSD/lending_fUSD_20240105
["ID","MTS","AMOUNT","RATE_DAILY","PERIOD"]
[310277021,1704456577245,-302.65065423,0.00022998,2]
[310277022,1704456577271,-448.28194198,0.00022998,2]
[310277023,1704456577298,-304.19339863,0.00022998,2]
[310277024,1704456577325,-155.09980276,0.00022998,2]
[310277025,1704456577355,-3915.58024355,0.00022998,2]
[310277026,1704456577383,-259.33587571,0.00022999,2]
[310277027,1704456577409,-5261.61661609,0.00022999,2]
[310277028,1704456577440,-2605.87309653,0.00022999,2]
[310277029,1704456577469,-627.1116,0.00022999,2]
[310277030,1704456577496,-309.16657707,0.00022999,2]
[310277031,1704456577523,-10525.07510932,0.00022999,2]
[310277032,1704456577551,-1216.80857926,0.00022999,2]
[310277033,1704456577577,-2612.12944822,0.00022999,2]
[310277034,1704456577604,-300.35878783,0.00022999,2]
[310277035,1704456577632,-335.0233018,0.00022999,2]
[310277036,1704456577658,-23153.8722607,0.00022999,2]
[310277037,1704456577684,-2738.5558088,0.00022999,2]
[310277038,1704456577712,-11368.9664117,0.00022999,2]
[310277039,1704456577740,-1800.0,0.00022999,2]
[310277040,1704456578010,-1800.0,0.00022999,2]
[310277041,1704456578039,-1800.0,0.00022999,2]
[310277042,1704456578067,-1800.0,0.00022999,2]
[310277043,1704456578094,-1800.0,0.00022999,2]
[310277044,1704456578121,-1800.0,0.00022999,2]
[310277045,1704456578147,-1800.0,0.00022999,2]
[310277046,1704456578173,-1800.0,0.00022999,2]
[310277047,1704456578201,-1800.0,0.00022999,2]
[310277048,1704456578228,-1800.0,0.00022999,2]
[310277049,1704456578255,-1800.0,0.00022999,2]
[310277050,1704456578283,-1800.0,0.00022999,2]
[310277051,1704456578310,-1800.0,0.00022999,2]
[310277052,1704456578336,-1800.0,0.00022999,2]
[310277053,1704456578363,-1800.0,0.00022999,2]
[310277054,1704456578389,-1800.0,0.00022999,2]
[310277055,1704456578415,-1800.0,0.00022999,2]
[310277056,1704456578444,-1800.0,0.00022999,2]
[310277057,1704456578473,-1800.0,0.00022999,2]
[310277058,1704456578500,-1800.0,0.00022999,2]
[310277059,1704456578526,-1800.0,0.00022999,2]
[310277060,1704456578552,-1800.0,0.00022999,2]
[310277061,1704456578578,-1800.0,0.00022999,2]
[310277062,1704456578603,-1096.15702002,0.00022999,2]
[310277063,1704456578630,-7314.3178388,0.00022999,2]
[310277064,1704456578656,-57942.14508958,0.00023,2]
[310277065,1704456608008,-203.0,0.00022755,2]
[310277066,1704456608036,-301.07252377,0.00022998,2]
[310277067,1704456608064,-2937.02663842,0.00022999,2]
[310277068,1704456608092,-348.0011258,0.00022999,2]
[310277069,1704456608121,-193.31359986,0.00023,3]
[310277070,1704456608149,-96017.58611215,0.00023,2]
[310277084,1704456631583,-271.47065642,0.00022999,2]
[310277085,1704456631594,-4049.7366414,0.00022999,2]
[310277086,1704456631607,-319.8600182,0.00022999,2]
[310277087,1704456631618,-1777.55532332,0.00023,2]
[310277088,1704456631631,-1300.0,0.00023,2]
[310277089,1704456631645,-92597.06341812,0.00023,2]
[310277090,1704456631672,-9421.42134927,0.00023,2]
[310277091,1704456631684,-1594.0,0.00023,2]
[310277092,1704456632101,-578696.6306876,0.00023,2]
[310277115,1704456632614,-170827.71531332,0.00023,2]
[310277116,1704456632638,-1170.87002281,0.00023,2]
[310277134,1704456637659,-576877.4787286,0.00023,2]
[310277135,1704456637671,-578914.19288253,0.00023,2]
[310277136,1704456637866,-330.0,0.00023,2]
[310277137,1704456637879,-28845.90156486,0.00023,2]
[310277138,1704456637943,-1285.22235789,0.00023,2]
[310277139,1704456637956,-951.26132272,0.00023,2]
[310277140,1704456638039,-998.80882928,0.00023,2]
[310277141,1704456638052,-340.1437836,0.00023,2]
[310277142,1704456638122,-2293.3248565,0.00023,2]
[310277143,1704456638148,-261.99999998,0.00023,2]
[310277144,1704456638160,-2408.05007012,0.00023,2]
[310277147,1704456640127,-22249.77143309,0.00023,2]
[310277148,1704456640265,-3069.92999604,0.00023,2]
[310277149,1704456640280,-652.71442351,0.00023,2]
[310277150,1704456640293,-808.97079544,0.00023,2]
[310277151,1704456640305,-561.73521667,0.00023,2]
[310277152,1704456640316,-1491.91095807,0.00023,2]
[310277154,1704456641230,-5504.67830161,0.00023,2]
[310277177,1704456643162,-179.82634649,0.00022999,2]
[310277178,1704456643173,-86.39539248,0.00023,2]
[310277179,1704456643186,-4386.0,0.00023,2]
[310277180,1704456643212,-3498.8022017,0.00023,2]
[310277181,1704456643225,-1561.6614768,0.00023,2]
[310277182,1704456643238,-3144.61045249,0.00023,2]
[310277183,1704456643260,-637.8253985,0.00023,2]
[310277184,1704456643272,-2366.55296797,0.00023,2]
[310277185,1704456643283,-5754.34977266,0.00023,2]
[310277186,1704456643294,-1188.22569422,0.00023,2]
[310277187,1704456643320,-281.65466295,0.00023,2]
[310277197,1704456645586,-297485.6153195,0.00023,2]
[310277202,1704456645703,-2276.17997931,0.00023,2]
[310277203,1704456645715,-10269.8958882,0.00023,2]
[310277204,1704456645823,-3554.39999999,0.00023,2]
[310277205,1704456645898,-1807.06482463,0.00023,2]
[310277211,1704456673901,265.03504503,0.00021847,2]
[310277212,1704456674897,630.04848623,0.00022307,2]
[310277213,1704456684054,619.71248681,0.00022077,2]
[310277214,1704456685230,153.31,0.00021913,2]
[310277215,1704456714137,322.51838201,0.00021,2]
[310277216,1704456731356,200.0,0.00022253,2]
[310277217,1704456777666,167.06,0.00022256,2]
[310277218,1704456800628,167.35,0.00022375,2]
[310277219,1704456800860,167.35,0.00022436,2]
[310277220,1704456801248,167.35,0.00022498,2]
[310277221,1704456815319,711.82,0.00021913,2]
[310277222,1704456939341,233.44,0.00019995,2]
[310277223,1704456939553,233.44,0.00022259,2]
[310277224,1704457053096,738.14,0.00021993,2]
[310277225,1704457053481,738.14,0.00022109,2]
[310277226,1704457053696,738.14,0.00022225,2]
[310277227,1704457053959,738.14,0.0002234,2]
[310277228,1704457054302,738.14,0.00022456,2]
[310277229,1704457054506,200.0,0.00021913,2]
[310277230,1704457071011,158.39,0.00022112,2]
[310277231,1704457071205,158.39,0.0002249,2]
[310277232,1704457092150,175.81,0.00022,2]
[310277233,1704457161303,178.03,0.00021893,2]
[310277234,1704457237865,840.0,0.00021841,2]
[310277235,1704457259525,5371.13676511,0.00022,2]
[310277236,1704457276829,10000.04978103,0.000225,2]
[310277237,1704457284863,158.05,0.00022002,2]
[310277238,1704457285102,158.05,0.00022069,2]
[310277239,1704457285316,158.05,0.00022137,2]
[310277240,1704457285574,158.05,0.00022204,2]
[310277241,1704457285971,158.05,0.00022272,2]
[310277242,1704457286126,158.05,0.00022339,2]
[310277243,1704457286352,158.05,0.00022406,2]
[310277244,1704457286739,158.05,0.00022474,2]
[310277245,1704457293876,10000.0,0.000224,2]
[310277246,1704457298143,10000.0,0.000224,2]
[310277247,1704457302694,10000.0,0.000225,2]
[310277248,1704457325172,10468.38656918,0.000225,2]
[310277249,1704457329560,10000.0,0.000225,2]
[310277250,1704457335345,14064.39,0.00021825,2]
[310277251,1704457343601,664.36,0.00021893,2]
[310277252,1704457425538,210.09,0.00019913,2]
[310277253,1704457425932,210.09,0.00022177,2]
[310277254,1704457577610,160.88894591,0.00022155,2]
[310277255,1704457660841,153.31,0.00021841,2]
[310277256,1704457684748,154.21,0.00022059,2]
[310277257,1704457706064,175.81,0.00022,2]
[310277258,1704457707650,328.0,0.00021811,2]
[310277259,1704457718249,2567.62628738,0.00022111,2]
[310277260,1704457739135,-219.8296715,0.00022525,2]
[310277261,1704457739161,-208.02980248,0.00022525,2]
[310277262,1704457768984,427.85947398,0.00021809,2]
[310277263,1704457769009,192.20052602,0.00021809,2]
[310277264,1704457771395,158.05,0.00021985,2]
[310277265,1704457771599,158.05,0.00022113,2]
[310277266,1704457771820,158.05,0.0002224,2]
[310277267,1704457772032,158.05,0.00022367,2]
[310277268,1704457772281,158.05,0.00022494,2]
[310277269,1704457778721,523.28163115,0.00022493,2]
[310277283,1704457831734,-208.02980248,0.00022547,2]
[310277284,1704457831744,-152.06417948,0.00022548,2]
[310277285,1704457831756,-198.25582052,0.00022548,2]
[310277286,1704457831976,-468.34417948,0.00022572,2]
[310277287,1704457832014,-269.79582052,0.00022572,2]
[310277288,1704457832025,-158.05,0.00022622,2]
[310277289,1704457832035,-153.90777301,0.00022643,2]
[310277290,1704457832045,-153.90777289,0.00022657,2]
[310277291,1704457832054,-153.90777289,0.00022672,2]
[310277292,1704457832064,-499.99,0.00022672,2]
[310277293,1704457832074,-3764.93,0.00022682,2]
[310277294,1704457832083,-153.90777289,0.00022686,2]
[310277295,1704457832093,-738.14,0.00022688,2]
[310277296,1704457832103,-153.90777289,0.000227,2]
[310277297,1704457832112,-153.90777289,0.00022714,2]
[310277298,1704457832122,-153.90777289,0.00022729,2]
[310277299,1704457832131,-153.90777289,0.00022743,2]
[310277300,1704457832141,-158.05,0.00022749,2]
[310277301,1704457832152,-153.90777289,0.00022757,2]
[310277302,1704457832161,-153.90777289,0.00022772,2]
[310277303,1704457832171,-153.90777289,0.00022786,2]
[310277304,1704457832180,-620.06,0.00022787,2]
[310277305,1704457832189,-543.12113448,0.00022796,2]
[310277306,1704457832199,-260.86670952,0.00022797,2]
[310277307,1704457832208,-417.584,0.00022798,2]
[310277308,1704457832220,-12145.92683356,0.00022798,2]
[310277310,1704457832236,-1692.00232861,0.00022798,2]
[310277314,1704457832265,-1387.4499996,0.00022798,2]
[310277317,1704457832276,-1450.3596528,0.00022798,2]
[310277319,1704457832288,-345.65559679,0.00022798,2]
[310277322,1704457832308,-258.75,0.00022798,2]
[310277324,1704457832321,-2087.16435839,0.00022798,2]
[310277327,1704457832333,-695.30929134,0.00022798,2]
[310277329,1704457832345,-5007.65404292,0.00022798,2]
[310277331,1704457832356,-5199.72779891,0.00022798,2]
[310277335,1704457832381,-8192.62444,0.00022798,2]
[310277337,1704457832393,-501.80524338,0.00022798,2]
[310277339,1704457832405,-437.7875108,0.00022798,2]
[310277341,1704457832415,-257.69497186,0.00022798,2]
[310277344,1704457832426,-379.4552289,0.00022798,2]
[310277347,1704457832446,-423.98137478,0.00022798,2]
[310277349,1704457832457,-12802.69556271,0.00022798,2]
[310277350,1704457832470,-6614.25905859,0.00022798,2]
[310277351,1704457832482,-267.5,0.00022798,2]
[310277352,1704457832493,-2465.17915817,0.00022798,2]
[310277353,1704457832505,-711.52918919,0.00022798,2]
[310277354,1704457832516,-267.3,0.00022798,2]
[310277355,1704457832541,-575.7624872,0.00022798,2]
[310277356,1704457832553,-44822.48503394,0.00022798,2]
[310277357,1704457832565,-2159.46645124,0.00022798,2]
[310277358,1704457832577,-34089.69658632,0.00022798,2]
[310277359,1704457832587,-5421.5,0.000228,2]
[310277360,1704457832596,-374.89309952,0.000228,2]
[310277361,1704457832606,-153.90777289,0.000228,2]
[310277362,1704457832615,-738.14,0.00022803,2]
[310277363,1704457832625,-153.90777289,0.00022814,2]
[310277364,1704457832634,-500.0,0.00022816,2]
[310277365,1704457832644,-200.0,0.00022816,2]
[310277366,1704457832654,-153.90777289,0.00022829,2]
[310277367,1704457832664,-153.90777289,0.00022843,2]
[310277368,1704457832673,-153.90777289,0.00022857,2]
[310277369,1704457832683,-158.39,0.00022868,2]
[310277370,1704457832692,-153.90777289,0.00022871,2]
[310277371,1704457832702,-158.05,0.00022876,2]
[310277372,1704457832711,-190.94965879,0.00022882,2]
[310277373,1704457832724,-153.90777289,0.00022886,2]
[310277374,1704457832734,-306.05148685,0.00022896,2]
[310277375,1704457832743,-859.20873431,0.00022897,2]
[310277376,1704457832753,-10526.78631525,0.00022897,2]
[310277377,1704457832762,-3918.60235514,0.00022898,2]
[310277378,1704457832771,-269.83626346,0.00022898,2]
[310277379,1704457832780,-301.20793522,0.00022898,2]
[310277380,1704457832790,-2189.02616561,0.00022898,2]
[310277381,1704457832799,-234.34924419,0.00022898,2]
[310277382,1704457832809,-105571.59489426,0.00022898,2]
[310277383,1704457832818,-3932.9545,0.00022899,2]
[310277384,1704457832828,-628.2273,0.00022899,2]
[310277385,1704457832838,-920.9362698,0.00022899,2]
[310277386,1704457832848,-189.24980776,0.000229,2]
[310277387,1704457832858,-153.90777289,0.000229,2]
[310277388,1704457832867,-17655.6251238,0.000229,2]
[310277389,1704457832882,-6478.3248762,0.000229,2]
[310277390,1704457832892,-374.89309952,0.000229,2]
[310277391,1704457832901,-956.85098258,0.000229,2]
[310277392,1704457832911,-165.59105574,0.000229,2]
[310277393,1704457832920,-373.95779263,0.000229,2]
[310277394,1704457832929,-371.42381321,0.000229,2]
[310277395,1704457832939,-456.35624267,0.000229,2]
[310277396,1704457832948,-344.76318922,0.000229,2]
[310277397,1704457832958,-738.14,0.00022919,2]
[310277398,1704457832967,-800.0,0.00022986,2]
[310277399,1704457832980,-168.03532328,0.0002299,2]
[310277400,1704457832990,-168.03532328,0.0002299,2]
[310277401,1704457832999,-168.03532328,0.0002299,2]
[310277402,1704457833009,-2477.71126209,0.00022997,2]
[310277403,1704457833019,-6238.94044513,0.00022997,2]
[310277404,1704457833028,-5480.20278799,0.00022997,2]
[310277405,1704457833057,-415.3872041,0.00022997,2]
[310277406,1704457833070,-3909.36693111,0.00022997,2]
[310277407,1704457833110,-271.48453953,0.00022997,2]
[310277408,1704457833122,-2186.00737166,0.00022997,2]
[310277409,1704457833132,-299.93588338,0.00022997,2]
[310277410,1704457833142,-1233.23044699,0.00022997,2]
[310277411,1704457833151,-235.59411495,0.00022997,2]
[310277441,1704457837832,-1599.39496542,0.00022997,2]
[310277443,1704457837842,-14034.99743461,0.00022998,2]
[310277445,1704457837852,-269.8078803,0.00022998,2]
[310277447,1704457837862,-660.48413816,0.00022998,2]
[310277449,1704457837871,-385.2396899,0.00022998,2]
[310277451,1704457837881,-578.0045009,0.00022998,2]
[310277453,1704457837891,-5697.5465973,0.00022998,2]
[310277455,1704457837903,-947.9412491,0.00022998,2]
[310277457,1704457837913,-54320.6973333,0.00022998,2]
[310277459,1704457837927,-180.2631699,0.00022998,2]
[310277461,1704457837939,-79140.7597512,0.00022998,2]
[310277462,1704457837949,-12090.7116764,0.00022998,2]
[310277463,1704457837960,-427.35500465,0.00022998,2]
[310277464,1704457837971,-18952.0354155,0.00022999,2]
[310277465,1704457837989,-157.04252938,0.00022999,2]
[310277466,1704457838000,-782.21775168,0.00022999,2]
[310277467,1704457838012,-361.05118527,0.00022999,2]
[310277468,1704457838022,-160.13125081,0.00022999,2]
[310277469,1704457838032,-361.23781306,0.00022999,2]
[310277470,1704457838042,-266.93262911,0.00022999,2]
[310277471,1704457838051,-385503.62676265,0.00023,2]
[310277472,1704457838064,-203353.47118025,0.00023,2]
[310277473,1704457838074,-375560.72170228,0.00023,2]
[310277474,1704457838091,-2761666.1474283,0.00023,2]
[310277475,1704457838100,-3722232.911811,0.00023,2]
[310277476,1704457838110,-931.13114601,0.00023,2]
[310277477,1704457838120,-605805.49152776,0.00023,2]
[310277478,1704457838132,-2269.52185068,0.00023,2]
[310277479,1704457838222,-11558.39065178,0.00023,2]
[310277480,1704457838234,-1311.34289306,0.00023,2]
[310277481,1704457838246,-1988.34535135,0.00023,2]
[310277482,1704457838270,-563.575,0.00023,2]
[310277483,1704457838282,-928.10102402,0.00023,2]
[310277484,1704457838294,-7133.400015,0.00023,2]
[310277526,1704457840337,-257.9798506,0.00023,2]
[310277527,1704457840350,-1055.08861201,0.00023,2]
[310277528,1704457840685,-3825.71925,0.00023,2]
[310277529,1704457840700,-4339.61736966,0.00023,2]
[310277604,1704457842822,-266.93262911,0.00022999,2]
[310277606,1704457842834,-1211.62447086,0.00023,2]
[310277609,1704457842850,-4638.01323963,0.00023,2]
[310277611,1704457842862,-4470.2230892,0.00023,2]
[310277612,1704457842900,-8788.6233057,0.00023,2]
[310277613,1704457842912,-327.52,0.00023,2]
[310277614,1704457843082,-440601.86578256,0.00023,2]
[310277645,1704457846044,-389.28099996,0.00023,2]
[310277650,1704457878130,189.08,0.00021376,2]
[310277651,1704458046637,203.0,0.00022141,2]
[310277652,1704458113948,158.31,0.00022059,2]
[310277653,1704458132757,178.03,0.00021841,2]
[310277654,1704458316134,179.62,0.00020082,2]
[310277655,1704458316375,179.62,0.00022346,2]
[310277656,1704458482423,1502.99860694,0.00025,7]
[310277658,1704458608308,162.6,0.00021999,2]
[310277659,1704458635268,262.4,0.00022164,2]
[310277660,1704458678725,2231.61459739,0.00021999,2]
[310277661,1704458678748,5062.49540261,0.00021999,2]
[310277663,1704458699593,187.51135195,0.00022128,2]
[310277664,1704458699617,393.79864805,0.00022128,2]
[310277665,1704458721951,541.83388243,0.000225,2]
[310277666,1704458726698,160.56,0.00022164,2]
[310277667,1704458736644,150.0,0.00022473,2]
[310277668,1704458739282,157.69,0.00022335,2]
[310277671,1704458765184,161.65,0.00020183,2]
[310277672,1704458765381,161.65,0.00022447,2]
[310277679,1704458866435,168.52,0.00021999,2]
[310277680,1704458939478,168.49,0.00022072,2]
[310277681,1704458983275,1094.91415065,0.00022072,2]
[310277682,1704458986918,155.38164155,0.00022072,2]
[310277683,1704459003274,375.5224848,0.00022072,2]
[310277686,1704459020374,174.23,0.0002201,2]
[310277740,1704459031954,-1278.82160055,0.00022548,2]
[310277745,1704459032034,-1477.39515843,0.00022548,2]
[310277746,1704459032046,-71622.70950066,0.00022548,2]
[310277747,1704459032059,-642.5144948,0.00022548,2]
[310277748,1704459032071,-556.53,0.00022548,2]
[310277749,1704459032083,-1103.3,0.00022548,2]
[310277750,1704459032096,-1550.3468,0.00022548,2]
[310277751,1704459032108,-529.8845438,0.00022548,2]
[310277752,1704459032126,-1356.33585999,0.00022548,2]
[310277753,1704459032138,-16720.4311,0.00022548,2]
[310277754,1704459032150,-522.94853577,0.00022548,2]
[310277755,1704459032290,-264.90308115,0.00022548,2]
[310277756,1704459032302,-10978.99999995,0.00022548,2]
[310277757,1704459032315,-543.29728188,0.00022548,2]
[310277759,1704459032326,-1894.56032884,0.00022548,2]
[310277760,1704459032353,-14560.58050813,0.00022548,2]
[310277761,1704459032380,-748.76317259,0.00022548,2]
[310277762,1704459032418,-4254.62068865,0.00022548,2]
[310277763,1704459032430,-13151.71555353,0.00022548,2]
[310277764,1704459032440,-47.33241603,0.00022549,2]
[310277765,1704459032452,-113.22758397,0.00022549,2]
[310277766,1704459032462,-150.0,0.00022549,2]
[310277767,1704459032472,-203.07724,0.0002277,2]
[310277768,1704459032482,-20365.24493856,0.00022815,2]
[310277769,1704459032493,-500.0,0.00022816,2]
[310277770,1704459032504,-200.0,0.00022816,2]
[310277771,1704459032513,-157.69,0.0002286,2]
[310277772,1704459032525,-171.61158482,0.00022885,2]
[310277773,1704459032535,-415.92827284,0.00022898,2]
[310277774,1704459032544,-415.92827282,0.00022899,2]
[310277775,1704459032554,-633.72,0.000229,2]
[310277776,1704459032567,-187.71033444,0.000229,2]
[310277777,1704459032577,-200.74611805,0.000229,2]
[310277778,1704459032586,-172.38159461,0.000229,2]
[310277779,1704459032595,-415.92827282,0.000229,2]
[310277780,1704459032605,-159.47516376,0.000229,2]
[310277781,1704459032617,-228.17812133,0.000229,2]
[310277782,1704459032626,-160.56,0.00022934,2]
[310277783,1704459032638,-332.92724832,0.00022985,3]
[310277784,1704459032648,-19973.04218364,0.00022985,2]
[310277785,1704459032658,-420.04,0.00022986,2]
[310277786,1704459032668,-494.45,0.00022986,2]
[310277787,1704459032679,-5610.57,0.00022986,2]
[310277788,1704459032689,-499.99,0.00022986,2]
[310277789,1704459032699,-1767.61,0.00022986,2]
[310277790,1704459032708,-1157.84751611,0.00022996,2]
[310277791,1704459032717,-243.85125634,0.00022996,2]
[310277792,1704459032727,-1760.94594392,0.00022996,2]
[310277793,1704459032738,-343.36644218,0.00022996,2]
[310277794,1704459032748,-372.4234725,0.00022996,2]
[310277795,1704459032759,-272.38351934,0.00022996,2]
[310277796,1704459032769,-160.08672756,0.00022996,2]
[310277797,1704459032779,-251.79727683,0.00022996,2]
[310277798,1704459032789,-843.00113502,0.00022996,2]
[310277799,1704459032800,-207.83148372,0.00022996,2]
[310277800,1704459032810,-245.54211778,0.00022996,2]
[310277801,1704459032819,-2293.55284014,0.00022996,2]
[310277802,1704459032829,-430.12467534,0.00022996,2]
[310277803,1704459032839,-372.3247722,0.00022996,2]
[310277804,1704459032849,-156.4406449,0.00022996,2]
[310277805,1704459032859,-1141.28374699,0.00022996,2]
[310277806,1704459032869,-513.69778937,0.00022996,2]
[310277807,1704459032879,-1308.18613366,0.00022996,2]
[310277808,1704459032890,-360.17751082,0.00022996,2]
[310277809,1704459032901,-522.07104133,0.00022996,2]
[310277810,1704459032911,-195.24808762,0.00022996,2]
[310277811,1704459032921,-211.57994505,0.00022996,2]
[310277812,1704459032931,-317.68758824,0.00022996,2]
[310277813,1704459032941,-187.63033208,0.00022996,2]
[310277814,1704459032951,-18870.89389379,0.00022997,2]
[310277815,1704459032961,-6541.4150084,0.00022998,2]
[310277816,1704459032972,-796.97542021,0.00022999,2]
[310277817,1704459032982,-266.93262911,0.00022999,2]
[310277818,1704459032992,-65779.80527778,0.00023,2]
[310277819,1704459033006,-178270.59823564,0.00023,2]
[310277820,1704459033019,-21200.22402018,0.00023,2]
[310277821,1704459034898,562.53338269,0.00020067,2]
[310277822,1704459034992,302.96537039,0.00022434,2]
[310277848,1704459037955,-1070.38310566,0.00022547,2]
[310277850,1704459037965,-199.40938153,0.00022547,2]
[310277852,1704459037975,-157.15051088,0.00022547,2]
[310277854,1704459037985,-270.62291569,0.00022547,2]
[310277856,1704459037995,-5242.32156854,0.00022814,2]
[310277858,1704459038005,-215.21165486,0.00022814,2]
[310277860,1704459038015,-160.82636773,0.00022814,2]
[310277867,1704459038276,-180.92455065,0.00022814,2]
[310277868,1704459038304,-258.83583849,0.00022814,2]
[310277869,1704459038313,-4544.31438567,0.00022814,2]
[310277870,1704459038326,-11.38303498,0.00022814,2]
[310277871,1704459038335,-216.52681729,0.00022814,2]
[310277872,1704459038345,-360.0278767,0.00022814,2]
[310277873,1704459038354,-260.19540139,0.00022814,2]
[310277874,1704459038363,-155.3270068,0.00022814,2]
[310277875,1704459038372,-1179.63375551,0.00022815,2]
[310277876,1704459038382,-30592.40491025,0.00023,2]
[310277877,1704459038394,-26465.97026144,0.00023,2]
[310277878,1704459038489,-385770.55939176,0.00023,2]
[310277879,1704459038501,-578914.19288253,0.00023,2]
[310277882,1704459038528,-218.64004931,0.00022814,2]
[310277884,1704459038537,-47109.11930268,0.00023,2]
[310277886,1704459038548,-34976.73482022,0.00023,2]
[310277889,1704459038559,-376.35719022,0.00023,2]
[310277890,1704459038574,-1189154.3404385,0.00023,2]
[310277891,1704459038585,-13065.45645089,0.00023,2]
[310277892,1704459038601,-410.76,0.00023,2]
[310277903,1704459038795,-21063.87560074,0.00023,2]
[310277905,1704459038807,-343.36644218,0.00023,2]
[310277908,1704459038823,-846.249995,0.00023,2]
[310277918,1704459038909,-625.05984695,0.00023,2]
[310277920,1704459038921,-431.95013453,0.00023,2]
[310277923,1704459038942,-41170.33411353,0.00023,2]
[310277925,1704459038953,-404.99995,0.00023,2]
[310277928,1704459038969,-1963.3065088,0.00023,2]
[310277937,1704459039918,280.70420003,0.00022322,2]
[310277951,1704459041440,-184.22579518,0.00022813,2]
[310277953,1704459041450,-198.85792776,0.00022813,2]
[310277955,1704459041459,-26.24627706,0.00022813,2]
[310277957,1704459041472,-187.93234226,0.00022813,2]
[310277958,1704459041482,-200.6455815,0.00022813,2]
[310277959,1704459041492,-138.96893147,0.00022813,2]
[310277960,1704459041507,-119.66976705,0.00022813,2]
[310277961,1704459041517,-155.0,0.00022813,2]
[310277962,1704459041530,-29576.42098558,0.00023,2]
[310277963,1704459041543,-48418.00000009,0.00023,2]
[310277964,1704459041555,-1478.37000005,0.00023,2]
[310277965,1704459041568,-2164.99999919,0.00023,2]
[310277966,1704459041613,-11338.6,0.00023,2]
[310277967,1704459041626,-8080.0,0.00023,2]
[310277968,1704459041638,-16649.9999,0.00023,2]
[310277969,1704459041649,-917.22325707,0.00023,2]
[310277970,1704459041660,-6612.2428,0.00023,2]
[310277971,1704459041688,-6508.57146713,0.00023,2]
[310277972,1704459041699,-17920.73240916,0.00023,2]
[310277973,1704459041711,-871.01413289,0.00023,2]
[310277974,1704459041723,-465.2588816,0.00023,2]
[310277975,1704459041737,-269.2302333,0.00023,2]
[310277976,1704459041749,-3054.93201405,0.00023,2]
[310277977,1704459041995,-6360.51982602,0.00023,2]
[310277978,1704459042009,-1209.85005545,0.00023,2]
[310277979,1704459042037,-3254.98910633,0.00023,2]
[310277980,1704459042049,-1356.54202793,0.00023,2]
[310277981,1704459042062,-11266.52977116,0.00023,2]
[310277991,1704459042568,-360.67956446,0.00022768,2]
[310277992,1704459042578,-112842.6008311,0.00023,2]
[310277993,1704459042590,-62073.10566872,0.00023,2]
[310277994,1704459042601,-260.8434565,0.00023,2]
[310277995,1704459042613,-1006.632,0.00023,2]
[310277996,1704459042625,-349.95,0.00023,2]
[310277997,1704459042637,-1148.68411142,0.00023,2]
[310277998,1704459042650,-88500.0,0.00023,2]
[310277999,1704459042662,-10426.8929,0.00023,2]
[310278000,1704459042674,-310.5,0.00023,2]
[310278008,1704459042812,-333.46208554,0.00023,2]
[310278009,1704459042824,-2319.09367613,0.00023,2]
[310278010,1704459042836,-8593.726155,0.00023,2]
[310278011,1704459042847,-4304.1,0.00023,2]
[310278015,1704459042859,-41000.0,0.00023,2]
[310278022,1704459042892,-368.46543218,0.00023,2]
[310278027,1704459042903,-345.381997,0.00023,2]
[310278032,1704459042915,-398.356242,0.00023,2]
[310278036,1704459042927,-1281.51,0.00023,2]
[310278044,1704459043005,-593.8178,0.00023,2]
[310278045,1704459043017,-400.59826215,0.00023,2]
[310278046,1704459043028,-988.67004795,0.00023,2]
[310278047,1704459043040,-4262.22663528,0.00023,2]
[310278048,1704459043052,-1907.41175,0.00023,2]
[310278049,1704459043065,-2134.05,0.00023,2]
[310278050,1704459043077,-53976.90365645,0.00023,2]
[310278051,1704459043089,-1758.93979561,0.00023,2]
[310278052,1704459043101,-683.51817911,0.00023,2]
[310278053,1704459043113,-307.748,0.00023,2]